[Event "ESCC-50 2022"]
[Site "Lublin"]
[Date "2022.07.05"]
[Round "1.11"]
[White "Chlewinski, Artur"]
[Black "Pietinen, Pekka"]
[Result "0-1"]
[ECO "C02"]
[WhiteElo "1417"]
[BlackElo "1937"]
[Annotator "TA"]
[PlyCount "80"]
[EventDate "2022.07.05"]
[EventType "swiss"]
[EventCountry "POL"]
[SourceTitle "playchess.com"]
[Source "ChessBase"]
[SourceQuality "1"]
[TimeControl "40/5400+30:1800+30"]

{[%evp 12,80,0,0,0,0,0,5,13,-47,-53,-45,-54,-45,-47,-78,-74,-89,-81,-74,0,-64,-69,-90,-90,-128,-88,-156,-10,-270,-266,-266,-258,-380,-383,-370,-376,-358,-354,-371,-363,-370,-327,-464,-459,-510,-505,-527,-431,-459,-461,-424,-435,-390,-338,-510,-493,-482,-469,-563,-535,-1010,-769,-881,-745,-708,-676,-729,-720,-699,-644]} 1. e4 {[%emt 0:00:03]} e6 {[%emt 0:00:17]} 2. d4 {[%emt 0:00:22]} d5 {[%emt 0:00:08]} 3. e5 {[%emt 0:00:50]} c5 {[%emt 0:01:17]} 4. c3 {[%emt 0:02:52]} Nc6 {[%emt 0:00:55]} 5. Nf3 {[%emt 0:03:04]} Qb6 {[%emt 0:04:24]} 6. Na3 {[%emt 0:03:15]} cxd4 {[%emt 0:09:36]} 7. cxd4 {[%emt 0:00:22]} Bb4+ {[%emt 0:05:15] C02: French: Advance Variation.} 8. Bd2 {[%emt 0:01:29]} Bxa3 {[%emt 0:04:18]} 9. bxa3 {[%emt 0:00:22]} Nxd4 {[%emt 0:00:59] The position is equal.} 10. Nxd4 {[%emt 0:03:45]} (10. Qa4+ $11 Nc6 11. Bd3) 10... Qxd4 $15 {[%emt 0:00:12]} 11. Bb5+ {[%emt 0:00:14]} Bd7 {[%emt 0:02:14]} 12. Bxd7+ {[%emt 0:00:03]} Kxd7 {[%emt 0:00:10]} 13. O-O {[%emt 0:00:34]} Ne7 {[%emt 0:02:09]} (13... Qxe5 $2 14. Qa4+ Ke7 15. Qb4+ Ke8 16. Qb5+ (16. Qxb7 Qb8 $18) 16... Kf8 17. Bb4+ Ne7 18. Qxb7 $18) 14. Rb1 {[%emt 0:06:40]} b6 {[%emt 0:06:48]} (14... Qxe5 $2 15. Qa4+ b5 16. Rxb5 $18) 15. Rb4 {[%emt 0:00:30] [#]} Qc5 $146 {[%emt 0:03:22]} (15... Qxe5 $17 16. Qa4+ Nc6) ({Predecessor:} 15... Qxe5 16. Bf4 Qc3 17. Qa4+ Qc6 18. Rc1 Qxa4 19. Rc7+ Kd8 20. Rxa4 g5 21. Bg3 a6 {1-0 (40) Perez Pietronave,C (2270)-Albarran,G (2105) Brazil 1997}) 16. Be3 {[%emt 0:12:53]} (16. Rf4 $11 Ke8 17. Bb4) 16... Qc7 {[%emt 0:02:37]} 17. Qa4+ {[%emt 0:05:57]} Qc6 {[%emt 0:04:53] ...Qxa4 is the strong threat.} 18. Qb3 {[%emt 0:01:02]} Rac8 {[%emt 0:03:11]} 19. f4 {[%emt 0:08:58]} ({White should try} 19. h3) 19... Qc2 {[%emt 0:01:55]} (19... Rc7 $17 {And now ...Rhc8 would win.} 20. Rc1 Qb7 21. Rxc7+ Qxc7 22. Qa4+ Kc8) 20. Rb1 $2 {[%emt 0:15:05][%mdl 8192] [#] This costs White the game.} (20. Ra4 $11 {and White is okay.} Qc7 21. Qb5+ Nc6 22. Rc1) 20... Qxb3 {[%emt 0:03:45]} 21. R4xb3 {[%emt 0:01:20]} Rc4 {[%emt 0:01:16]} 22. Rc1 {[%emt 0:09:55]} (22. Bd2 $142) 22... Rxc1+ $19 {[%emt 0:02:33]} 23. Bxc1 {[%emt 0:00:01][%mdl 4096] Endgame KRB-KRN} Rc8 {[%emt 0:00:18]} 24. Bd2 {[%emt 0:05:34]} Rc2 {[%emt 0:03:18][%csl LRa2,LRd2]} 25. Be1 {[%emt 0:03:40]} g6 {[%emt 0:08:06]} 26. a4 {[%emt 0:04:00]} Nc6 {[%emt 0:06:02]} 27. a5 {[%emt 0:04:14]} (27. a3 {keeps fighting.}) 27... Nxa5 {[%emt 0:03:57]} 28. Bxa5 {[%emt 0:00:14]} bxa5 {[%emt 0:00:06] KR-KR} 29. Rb7+ {[%emt 0:00:33]} Rc7 {[%emt 0:00:13]} 30. Rb5 {[%emt 0:00:17]} Kc6 {[%emt 0:00:39]} ({Don't go for} 30... Rc1+ $2 31. Kf2 $19) 31. Rxa5 {[%emt 0:00:14]} Kb6 {[%emt 0:00:14]} 32. Ra3 {[%emt 0:00:12]} Kb5 {[%emt 0:05:02]} 33. h3 {[%emt 0:03:13]} (33. Kf1 {is a better defense.} Rc4 34. Rxa7 Rxf4+ 35. Ke2) 33... Kb4 {[%emt 0:01:33] Black is clearly winning.} 34. Rb3+ {[%emt 0:00:23]} Kc4 {[%emt 0:00:13]} 35. Kf1 {[%emt 0:00:23]} Kd4 {[%emt 0:04:41]} 36. Ra3 {[%emt 0:01:28]} Ke4 {[%emt 0:02:44]} 37. Ra4+ {[%emt 0:00:56]} Ke3 {[%emt 0:02:32][%cal Rc7c1] [#]} 38. Ra3+ {[%emt 0:00:09]} Kxf4 {[%emt 0:01:01]} 39. g3+ {[%emt 0:00:42]} Kxe5 {[%emt 0:00:17]} 40. Ke2 {[%emt 0:00:00]} f5 {Weighted Error Value: White=0.56/Black=0.35} 0-1

[Event "ESCC-50 2022"]
[Site "Lublin"]
[Date "2022.07.06"]
[Round "2.1"]
[White "Mrva, Martin"]
[Black "Kirszenberg, Marc"]
[Result "1-0"]
[ECO "B11"]
[WhiteElo "2385"]
[BlackElo "2056"]
[Annotator "TA"]
[PlyCount "47"]
[EventDate "2022.07.05"]
[EventType "swiss"]
[EventCountry "POL"]
[SourceTitle "playchess.com"]
[Source "ChessBase"]
[SourceQuality "1"]
[TimeControl "40/5400+30:1800+30"]

{[%evp 10,47,25,0,47,41,52,49,59,62,75,76,63,52,58,35,21,0,32,35,49,-26,-34,-52,238,241,231,227,238,227,585,589,589,585,1029,1022,1012,1006,990,939]} 1. e4 {[%emt 0:00:04]} c6 {[%emt 0:00:09]} 2. Nc3 {[%emt 0:00:07]} d5 {[%emt 0:00:04]} 3. Nf3 {[%emt 0:00:07]} Bg4 {[%emt 0:00:11]} 4. h3 {[%emt 0:00:06]} Bxf3 {[%emt 0:00:07]} 5. Qxf3 {[%emt 0:00:05]} e6 {[%emt 0:00:06]} 6. g3 {[%emt 0:00:07]} g6 {[%emt 0:04:04] B11: Caro-Kann: Two Knights Variation.} (6... Nf6 $11 {was preferrable.}) 7. d4 $14 {[%emt 0:04:05]} Bg7 {[%emt 0:02:11]} 8. Be3 {[%emt 0:00:14][%cal Bc1e3,Be3f4,Bf4d6,Bd6c5][%mdl 32]} Ne7 {[%emt 0:06:09] White is slightly better.} 9. O-O-O {[%emt 0:09:51]} Nd7 {[%emt 0:03:45] [#]} 10. h4 $146 {[%emt 0:01:57]} ({Predecessor:} 10. Kb1 a6 11. h4 h6 12. Bg2 Qa5 13. Ne2 Nf6 14. exd5 cxd5 15. Nc1 Nf5 16. Bf1 Nxe3 17. fxe3 {0-1 (62) Llobel Cortell,E (2392)-Esipenko,A (2720) Struga 2021}) 10... h6 {[%emt 0:09:37]} 11. Bf4 {[%emt 0:10:45] White is more active.} a6 {[%emt 0:02:29]} 12. Bh3 {[%emt 0:16:05]} b5 {[%emt 0:02:52]} 13. Bd6 {[%emt 0:07:24] Threatens to win with Bxe7.} Nb6 {[%emt 0:00:29]} 14. Bc5 {[%emt 0:01:10]} O-O {[%emt 0:22:02]} 15. exd5 {[%emt 0:07:04]} (15. h5 $14) 15... cxd5 $11 {[%emt 0:01:01]} 16. Rhe1 {[%emt 0:00:07][%cal Bh1e1,Be1e6,Be6e7][%mdl 32]} Re8 $2 {[%emt 0:01:01][%mdl 8192] [#] Loses the game.} (16... Rc8 $1 $15 {stays ahead.}) 17. Bxe6 $1 $18 {[%emt 0:03:26][%mdl 512]} fxe6 {[%emt 0:05:11]} 18. Rxe6 {[%emt 0:00:14]} Rb8 {[%emt 0:05:39][%cal Ob5b4]} 19. Rde1 {[%emt 0:06:24][%cal Re6e7]} Rf8 $2 {[%emt 0:10:45]} (19... Rb7 20. Qe2 Nbc8 21. Rxg6 (21. Rxa6 b4 $16) 21... Rf8) 20. Qg4 {[%emt 0:03:48] White is clearly winning.} ({Not} 20. Bxe7 Qxe7 21. Qg4 h5 22. Qxg6 (22. Rxe7 hxg4 23. Nd1 Bxd4 $17) 22... Rf6 $11) 20... h5 {[%emt 0:12:42]} 21. Qg5 {[%emt 0:00:14]} ({Inferior is} 21. Bxe7 hxg4 22. Bxd8 Rfxd8 $11) 21... Nbc8 {[%emt 0:03:02]} 22. Bxe7 {[%emt 0:04:43]} Nxe7 {[%emt 0:00:08]} 23. Rxe7 {[%emt 0:00:05]} Rb6 {[%emt 0:00:49]} 24. Nxd5 {[%emt 0:02:32] Weighted Error Value: White=0.11 (very precise) /Black=0.85} 1-0

[Event "ESCC-50 2022"]
[Site "Lublin"]
[Date "2022.07.06"]
[Round "2.2"]
[White "Pietinen, Pekka"]
[Black "Druckenthaner, Andreas"]
[Result "0-1"]
[ECO "A04"]
[WhiteElo "1937"]
[BlackElo "2272"]
[Annotator "TA"]
[PlyCount "50"]
[EventDate "2022.07.05"]
[EventType "swiss"]
[EventCountry "POL"]
[SourceTitle "playchess.com"]
[Source "ChessBase"]
[SourceQuality "1"]
[TimeControl "40/5400+30:1800+30"]

{[%evp 9,50,-39,0,0,-4,-23,-25,-40,-41,-44,-30,-79,-46,-80,-82,-133,-141,-157,-147,-155,-162,-163,-118,-113,-77,-156,-139,-144,-99,-165,-173,-311,-302,-288,-256,-206,-156,-527,-391,-702,-502,-617,-354]} 1. Nf3 {[%emt 0:00:07]} f5 {[%emt 0:00:07]} 2. e4 {[%emt 0:00:31]} fxe4 {[%emt 0:00:14]} 3. Ng5 {[%emt 0:00:09]} Nf6 {[%emt 0:01:50]} 4. d3 {[%emt 0:01:57]} e6 {[%emt 0:06:19]} 5. Nxe4 {[%emt 0:02:27]} Be7 {[%emt 0:00:21]} 6. Nxf6+ {[%emt 0:05:23] A04: Unusual lines after 1 Nf3 and King's Indian Attack.} Bxf6 {[%emt 0:01:58]} 7. Qh5+ {[%emt 0:00:42]} g6 {[%emt 0:00:14]} 8. Qh6 {[%emt 0:00:40] Black has an edge.} Qe7 {[%emt 0:01:27] [#]} 9. c3 $146 {[%emt 0:03:28]} ({Predecessor:} 9. Nc3 d5 10. h4 Nc6 11. Bd2 Nd4 12. O-O-O Nf5 13. Qf4 e5 14. Qa4+ Bd7 15. Qb3 {0-1 (44) Dounis,A (2246)-Stefanidi,M (1998) Heraklion 2014}) 9... Nc6 {[%emt 0:02:17]} 10. h4 {[%emt 0:03:27]} (10. d4 $11 {is more appropriate.}) 10... e5 {[%emt 0:06:02]} 11. Nd2 {[%emt 0:09:25]} d5 {[%emt 0:02:14]} 12. g3 {[%emt 0:08:05]} (12. Nb3 $142) 12... Bf5 $17 {[%emt 0:07:31]} 13. Be2 {[%emt 0:08:44]} O-O-O {[%emt 0:01:08]} 14. O-O {[%emt 0:11:57]} g5 {[%emt 0:07:26][%cal Rg5h4] Black is more active.} 15. Nf3 {[%emt 0:05:35][%cal Rh4g5]} gxh4 {[%emt 0:02:08]} 16. Nxh4 {[%emt 0:00:58]} Be6 {[%emt 0:01:56]} 17. Kh2 ({White should try} 17. b4) 17... Rdg8 {[%emt 0:07:00]} 18. Bd2 {[%emt 0:10:24]} Nd8 {[%emt 0:08:19][%cal Bc6d8,Bd8f7,Bf7d6,Bd6f5][%mdl 32]} 19. f4 {[%emt 0:04:04]} (19. Rae1 $17 {might work better.}) 19... Kb8 {[%emt 0:09:58]} ({Inferior is} 19... Nf7 20. Qh5 $15) 20. fxe5 {[%emt 0:04:43]} ({Much weaker is} 20. f5 Bd7 21. Ng2 Bc6 $17) (20. Qh5 $142) 20... Bxe5 $19 {[%emt 0:00:22]} 21. Bf4 {[%emt 0:00:29]} Nf7 {[%emt 0:05:35]} 22. Qh5 {[%emt 0:02:10]} Bxf4 {[%emt 0:01:19]} 23. gxf4 {[%emt 0:03:08]} (23. Rxf4 $17 {was the crucial defense.} Rg5 24. Qf3) 23... Nd6 {[%emt 0:02:39] [#] Hoping for ...Bf7.} 24. Ng2 $2 {[%emt 0:04:25]} (24. Rae1 Qf6 25. Ng2) 24... Nf5 {[%emt 0:02:44]} 25. Rfe1 {[%emt 0:01:50]} Rg6 {[%emt 0:05:48] Weighted Error Value: White=0.80/Black=0.35} 0-1

[Event "ESCC-50 2022"]
[Site "Lublin"]
[Date "2022.07.06"]
[Round "2.3"]
[White "Tereladze, Sopiko"]
[Black "Sielicki, Tomasz"]
[Result "1-0"]
[ECO "B15"]
[WhiteElo "2141"]
[BlackElo "1967"]
[Annotator "TA"]
[PlyCount "73"]
[EventDate "2022.07.05"]
[EventType "swiss"]
[EventCountry "POL"]
[SourceTitle "playchess.com"]
[Source "ChessBase"]
[SourceQuality "1"]
[TimeControl "40/5400+30:1800+30"]

{[%evp 11,72,22,9,0,10,0,8,0,0,-1,7,7,6,2,33,-22,-25,-7,-9,-12,-22,-14,38,43,39,42,50,51,97,101,96,92,115,85,82,91,87,66,178,165,185,168,319,326,387,374,368,360,476,428,637,632,784,892,29990,29991,29993,29994,29995,29996,29998,29999,29999]} 1. e4 {[%emt 0:00:03]} c6 {[%emt 0:00:20]} 2. Nc3 {[%emt 0:00:24]} d5 {[%emt 0:00:34]} 3. d4 {[%emt 0:00:14]} dxe4 {[%emt 0:00:12]} 4. Nxe4 {[%emt 0:00:04]} Nf6 {[%emt 0:00:18]} 5. Nxf6+ {[%emt 0:00:05]} exf6 {[%emt 0:00:06]} 6. Nf3 {[%emt 0:01:20]} Bd6 {[%emt 0:00:47]} 7. c3 {[%emt 0:01:27] B15: Caro-Kann: 3 Nc3: 3...g6 and 3...dxe4 4 Nxe4 Nf6 5 Nxf6+ exf6.} O-O {[%emt 0:00:20]} 8. Be3 {[%emt 0:00:09]} Re8 {[%emt 0:00:44]} 9. Be2 {[%emt 0:00:04] The position is equal.} Bg4 {[%emt 0:08:49] [#]} 10. h3 $146 {[%emt 0:01:44]} ({Predecessor:} 10. O-O Qc7 11. h3 Bh5 12. Re1 Nd7 13. Nh4 Bg6 14. Bd3 Nf8 15. Nxg6 hxg6 16. Qf3 {1-0 (42) Wickert,D (2000)-Hallekamp,G (2100) Buchholz in der Nordheide 2007}) 10... Bxf3 {[%emt 0:01:06]} 11. Bxf3 {[%emt 0:03:42]} Bf4 {[%emt 0:03:45]} 12. Qd3 {[%emt 0:00:18]} Qe7 {[%emt 0:08:19]} 13. O-O-O {[%emt 0:01:13]} ({White should try} 13. Kf1 $14 Bxe3 14. Re1) 13... Bxe3+ $11 {[%emt 0:00:50]} 14. fxe3 {[%emt 0:00:06]} Qxe3+ {[%emt 0:01:24]} 15. Qxe3 {[%emt 0:00:01]} Rxe3 {[%emt 0:00:17]} 16. d5 {[%emt 0:00:01]} cxd5 {[%emt 0:05:03]} ({Better is} 16... Kf8 $11) 17. Rxd5 $14 {[%emt 0:00:31] Intending Rd8+ and mate.} Nc6 {[%emt 0:01:41] Prevents Rd8+.} 18. Rb5 {[%emt 0:03:03]} Ne5 {[%emt 0:21:10]} 19. Bxb7 {[%emt 0:00:18]} Rd8 {[%emt 0:01:42]} (19... Re8 $14) 20. Rd1 $16 {[%emt 0:04:15][%cal Rd1d8]} Nd3+ {[%emt 0:07:20] [#]} 21. Kb1 $1 {[%emt 0:05:00]} g6 {[%emt 0:06:38]} 22. Rd5 Rxd5 {[%emt 0:08:39]} 23. Bxd5 {[%emt 0:00:52][%mdl 4096] Endgame KRB-KRN} Nf4 {[%emt 0:00:43]} 24. c4 {[%emt 0:01:18]} Nxd5 {[%emt 0:03:19]} (24... Kf8 $14) 25. Rxd5 $14 {[%emt 0:00:23] KR-KR} ({Weaker is} 25. cxd5 Kf8 $11) 25... Kf8 {[%emt 0:00:34]} 26. Kc2 {[%emt 0:01:55]} Ke7 $2 {[%emt 0:06:31]} ({Not} 26... Re2+ 27. Rd2 Re4 28. Kc3 $16) (26... Rg3 {might work better.}) 27. Ra5 $18 {[%emt 0:02:28]} Re2+ {[%emt 0:00:19]} 28. Kc3 {[%emt 0:00:01]} Rxg2 {[%emt 0:00:12]} 29. Rxa7+ {[%emt 0:00:01]} Ke6 {[%emt 0:00:34] [#]} 30. b4 $1 {[%emt 0:00:27]} f5 {[%emt 0:03:39]} (30... Rg1 $142 31. b5 f5) 31. b5 {[%emt 0:00:31]} f4 {[%emt 0:01:44] ...f3 is the strong threat.} 32. b6 {[%emt 0:06:27] White wants to mate with b7.} f3 {[%emt 0:01:21]} 33. b7 {[%emt 0:01:48] White mates.} f2 {[%emt 0:00:08]} 34. b8=Q f1=Q {[%emt 0:00:07]} 35. Qe8+ {[%emt 0:00:39]} Kd6 {[%emt 0:01:01]} 36. Qe7+ {[%emt 0:00:16]} Kc6 {[%emt 0:00:07]} 37. Ra6# {[%emt 0:00:07] Weighted Error Value: White=0.06 (flawless) /Black=0.50} 1-0

[Event "ESCC-50 2022"]
[Site "Lublin"]
[Date "2022.07.06"]
[Round "2.4"]
[White "Padrak, Rafal"]
[Black "Krzyzanowska-Zadlo, Lidia"]
[Result "1/2-1/2"]
[ECO "D15"]
[WhiteElo "2125"]
[BlackElo "1732"]
[Annotator "TA"]
[PlyCount "86"]
[EventDate "2022.07.05"]
[EventType "swiss"]
[EventCountry "POL"]
[SourceTitle "playchess.com"]
[Source "ChessBase"]
[SourceQuality "1"]
[TimeControl "40/5400+30:1800+30"]

{[%evp 10,86,21,18,22,17,39,39,39,40,48,52,100,93,122,128,177,184,171,181,218,164,143,116,210,192,186,87,170,37,37,43,68,61,97,41,46,37,45,14,8,28,13,0,0,0,0,-8,-1,-6,27,17,7,0,103,98,354,342,333,0,0,0,0,0,0,0,29,0,0,0,0,0,0,0,0,0,0,0,0]} 1. d4 {[%emt 0:00:05]} d5 {[%emt 0:01:56]} 2. c4 {[%emt 0:00:21]} c6 {[%emt 0:01:35]} 3. Nc3 {[%emt 0:01:27]} Nf6 {[%emt 0:00:19]} 4. Nf3 {[%emt 0:00:28]} a6 {[%emt 0:01:01]} 5. cxd5 {[%emt 0:06:47]} cxd5 {[%emt 0:01:00]} 6. Bg5 {[%emt 0:03:19]} e6 {[%emt 0:11:39] Recently 6...Nc6 got a lot of attention. D15: Slav Defence: 4 Nc3 a6 and gambit lines after 4 Nc3 dxc4.} 7. e3 {[%emt 0:00:39]} Bd6 {[%emt 0:02:56]} 8. Bd3 {[%emt 0:01:34]} Nc6 {[%emt 0:04:54] White is slightly better.} 9. Rc1 {[%emt 0:02:31]} Bd7 {[%emt 0:00:52]} 10. O-O {[%emt 0:00:35] [#]} Qb8 $146 {[%emt 0:10:25]} (10... O-O $14 {is superior.}) ({Predecessor:} 10... O-O 11. e4 dxe4 12. Nxe4 Be7 13. Nxf6+ Bxf6 14. Be3 Bc8 15. Be4 Nb4 16. a3 Nd5 {1-0 (65) Kotlarik,M (1000)-Mikuska,M (1513) Slovakia 2019}) 11. Na4 {[%emt 0:14:10]} b5 {[%emt 0:00:52]} 12. Nc5 {[%emt 0:04:52]} h6 {[%emt 0:02:18]} (12... Ne7 $16 13. Qc2 Ra7) 13. Bxf6 $18 {[%emt 0:02:52]} gxf6 {[%emt 0:00:24]} 14. e4 {[%emt 0:00:07] Threatens to win with exd5.} Ne7 {[%emt 0:09:38]} 15. Nxd7 {[%emt 0:15:33]} Kxd7 {[%emt 0:00:20]} 16. a4 {[%emt 0:00:43]} Ra7 {[%emt 0:03:04]} (16... Ke8 $16) 17. axb5 {[%emt 0:01:24]} axb5 {[%emt 0:00:11]} 18. Qb3 {[%emt 0:00:29]} (18. e5 $1 $18 {[%cal Re5d6] has better winning chances.} fxe5 19. dxe5 Bxe5 20. Nxe5+ Qxe5 21. Qf3 (21. Bxb5+ Kd8 $16)) 18... b4 {[%emt 0:04:36]} (18... dxe4 $16 {was necessary.} 19. Bxe4 Ke8) 19. Ra1 {[%emt 0:09:15]} (19. e5 $18 fxe5 20. dxe5) 19... dxe4 $14 {[%emt 0:03:57]} 20. Bxe4 {[%emt 0:00:38] Strongly threatening d5.} f5 {[%emt 0:03:21]} 21. Bd3 {[%emt 0:00:39][%cal Od3b5] And now Bb5+! would win. White is more active.} Rc8 {[%emt 0:00:39]} 22. Bb5+ {[%emt 0:06:26]} Kd8 {[%emt 0:00:22] aiming for ...Rxa1.} 23. Rxa7 {[%emt 0:00:59]} Qxa7 {[%emt 0:00:18]} 24. Ne5 {[%emt 0:00:25]} Bxe5 {[%emt 0:00:55]} 25. dxe5 $40 {[%emt 0:00:05][%mdl 128] Black needs to defend precisely.} Qc5 {[%emt 0:00:48]} 26. Rd1+ {[%emt 0:04:48]} Nd5 {[%emt 0:00:19]} 27. Ba6 {[%emt 0:03:23]} Rc7 {[%emt 0:01:17]} 28. Bd3 {[%emt 0:08:59][%cal Od3f5] Inhibits Qc2.} Ke7 {[%emt 0:02:20]} 29. g3 {[%emt 0:00:23][%cal Od3f5]} ({Avoid the trap} 29. Bxf5 $2 exf5 30. Qf3 {[#]} f4 $1 $19) 29... f4 {[%emt 0:02:08]} 30. Be4 {[%emt 0:00:30][%cal Re4d5]} fxg3 {[%emt 0:04:36]} 31. hxg3 {[%emt 0:00:00][%cal Re4d5]} Rd7 {[%emt 0:05:28]} (31... Nb6 $1 $11 {keeps the balance.}) 32. Qf3 $16 {[%emt 0:00:59]} Nb6 $2 {[%emt 0:01:18][%mdl 8192]} (32... Ke8 $16) 33. Qf6+ $18 {[%emt 0:01:17]} Ke8 {[%emt 0:02:31]} 34. Qh8+ $2 {[%emt 0:00:10]} (34. Ra1 $18) 34... Qf8 $11 {[%emt 0:01:52]} 35. Qxf8+ {[%emt 0:00:08]} Kxf8 {[%emt 0:00:06]} 36. Rxd7 {[%emt 0:00:45]} Nxd7 {[%emt 0:00:03][%mdl 4096] Endgame KB-KN} 37. f4 {[%emt 0:00:06]} Ke7 {[%emt 0:01:58]} 38. Kg2 {[%emt 0:03:58]} f6 {[%emt 0:00:22] The position is equal.} 39. exf6+ {[%emt 0:00:00]} Kxf6 {[%emt 0:00:00]} 40. Kf3 {[%emt 0:00:00]} e5 {[%emt 0:00:00]} 41. Bc6 {[%emt 0:13:46]} Nc5 {[%emt 0:06:42]} 42. fxe5+ {[%emt 0:00:49]} Kxe5 {[%emt 0:00:30]} 43. Ke3 {[%emt 0:00:53] Prevents Nd3.} Ne6 {[%emt 0:04:42] Weighted Error Value: White=0.26 (precise) /Black=0.38} 1/2-1/2

[Event "ESCC-50 2022"]
[Site "Lublin"]
[Date "2022.07.06"]
[Round "2.5"]
[White "Leszner, Liliana"]
[Black "Lasinskas, Povilas"]
[Result "0-1"]
[ECO "C55"]
[WhiteElo "1872"]
[BlackElo "2096"]
[Annotator "TA"]
[PlyCount "62"]
[EventDate "2022.07.05"]
[EventType "swiss"]
[EventCountry "POL"]
[SourceTitle "playchess.com"]
[Source "ChessBase"]
[SourceQuality "1"]
[TimeControl "40/5400+30:1800+30"]

{[%evp 13,62,32,34,28,39,37,41,34,29,36,35,33,47,35,38,45,50,0,23,0,90,74,129,136,185,0,-29,-80,-63,-62,-72,-62,-67,-354,-357,-353,-344,-340,-322,-352,-307,-801,-645,-637,-588,-506,-409,-29978,-29979,-29988,-29989]} 1. e4 {[%emt 0:00:03]} e5 {[%emt 0:00:08]} 2. Nf3 {[%emt 0:00:10]} Nc6 {[%emt 0:00:06]} 3. Bc4 {[%emt 0:00:12]} Nf6 {[%emt 0:00:07]} 4. d3 {[%emt 0:00:07]} h6 {[%emt 0:00:05]} 5. c3 {[%emt 0:00:21]} Be7 {[%emt 0:00:15]} 6. O-O {[%emt 0:00:29]} O-O {[%emt 0:00:21]} 7. Re1 {[%emt 0:02:36]} d6 {[%emt 0:00:13]} 8. b4 {[%emt 0:00:35] C55: Two Knights: 4 d3, 4 d4 exd4 5 e5 and Max Lange Attack.} Nh7 {[%emt 0:02:02]} 9. Nbd2 {[%emt 0:03:31]} Kh8 {[%emt 0:00:31]} 10. Nf1 {[%emt 0:01:34] White is slightly better.} f5 {[%emt 0:00:31]} 11. exf5 {[%emt 0:00:37]} Bxf5 {[%emt 0:00:27] [#]} 12. Ng3 $146 {[%emt 0:04:22]} ({Predecessor:} 12. Ne3 Bg6 13. Nd5 Qd7 14. b5 Na5 15. Ba3 Nxc4 16. dxc4 Bh5 17. Rxe5 Bg5 18. Re4 Bxf3 19. gxf3 {1-0 (41) Sorokin,M-Ziatdinov,R Kemerovo 1985}) 12... Bg4 {[%emt 0:01:13] [#]} 13. Nh4 {[%emt 0:01:19]} Bxh4 {[%emt 0:01:16]} 14. Qxg4 {[%emt 0:00:04]} Bg5 {[%emt 0:01:09]} 15. Be3 {[%emt 0:05:10]} ({White should try} 15. Bb3 $14) 15... Ne7 {[%emt 0:08:40]} 16. Bb3 {[%emt 0:02:23]} Ng6 {[%emt 0:04:37]} (16... Bxe3 $11 {keeps the balance.} 17. fxe3 a5) 17. d4 {[%emt 0:07:03]} Nf4 {[%emt 0:10:17]} (17... Nf6 $142 18. Bxg5 Nxg4 19. Bxd8 Raxd8) 18. dxe5 $16 {[%emt 0:02:04]} Nd3 {[%emt 0:00:37] [#]} (18... dxe5 $16 {keeps fighting.} 19. Bc5 Re8) 19. exd6 $2 {[%emt 0:05:15]} Nxe1 $11 {[%emt 0:00:49] Pair of Knights!} 20. dxc7 {[%emt 0:01:37] [#]} (20. Bd4 $11 {remains equal.}) 20... Qxc7 $1 $17 {[%emt 0:00:50]} 21. Rxe1 {[%emt 0:01:13]} Qxc3 {[%emt 0:02:04]} 22. Rc1 {[%emt 0:00:48]} Qb2 $40 {[%emt 0:03:29][%mdl 128] White needs to defend precisely.} 23. f4 $2 {[%emt 0:04:41][%mdl 8192] [#] White does not recover from this.} ({White should play} 23. Rc2 $15 Qe5 24. Qd4 Qxd4 25. Bxd4) 23... Bxf4 $1 $19 {[%emt 0:02:02][%mdl 512]} 24. Bxf4 {[%emt 0:01:39] aiming for Nf5.} Qd4+ {[%emt 0:00:18]} 25. Kh1 {[%emt 0:00:05] Black must now prevent Nf5.} Rxf4 {[%emt 0:01:05]} ({Wrong is} 25... Qxf4 $2 26. Qxf4 Rxf4 27. b5 $19) 26. Qe6 {[%emt 0:03:34]} Qxb4 {[%emt 0:04:20]} 27. Nf5 $2 {[%emt 0:01:10]} (27. h3) 27... Re4 {[%emt 0:00:54]} 28. Rc8+ {[%emt 0:01:36]} Rxc8 {[%emt 0:00:07]} 29. Qxc8+ {[%emt 0:00:05]} Qf8 {[%emt 0:00:08][%cal Re4e1]} 30. Qc1 {[%emt 0:02:17] Inhibits Re1+.} (30. Qxf8+ $19 Nxf8 31. h3) 30... Qxf5 {[%emt 0:00:39]} 31. Bc2 {[%emt 0:00:03]} Rc4 {Weighted Error Value: White=0.94/Black=0.31} 0-1